[Event "Live Chess"]
[Site "Chess.com"]
[Date "2023.05.20"]
[Round "-"]
[White "Jo1ts"]
[Black "wot-not"]
[Result "0-1"]
[WhiteElo "730"]
[BlackElo "1482"]
[TimeControl "300"]
[EndTime "13:00:16 PDT"]
[Termination "wot-not won by checkmate"]

1. d4 {[%clk 0:04:58.5]} 1... d5 {[%clk 0:04:55.2]} 2. Bf4 {[%clk 0:04:57.5]}
2... Nf6 {[%clk 0:04:51.6]} 3. Nf3 {[%clk 0:04:56.4]} 3... Bg4 {[%clk
0:04:47.4]} 4. e3 {[%clk 0:04:54.9]} 4... Nbd7 {[%clk 0:04:45.3]} 5. Nbd2 {[%clk
0:04:49.9]} 5... e6 {[%clk 0:04:44.4]} 6. Bd3 {[%clk 0:04:48]} 6... Bd6 {[%clk
0:04:37]} 7. Bg3 {[%clk 0:04:45.8]} 7... Bxg3 {[%clk 0:04:34.3]} 8. hxg3 {[%clk
0:04:45.7]} 8... h6 {[%clk 0:04:33.2]} 9. c3 {[%clk 0:04:40.6]} 9... c6 {[%clk
0:04:32.3]} 10. Qb3 {[%clk 0:04:32.4]} 10... Qb6 {[%clk 0:04:29.7]} 11. c4
{[%clk 0:04:26.3]} 11... Qxb3 {[%clk 0:04:16.9]} 12. Nxb3 {[%clk 0:04:26.2]}
12... dxc4 {[%clk 0:04:16.2]} 13. Bxc4 {[%clk 0:04:22.4]} 13... Nb6 {[%clk
0:04:15.9]} 14. Bd3 {[%clk 0:04:16.3]} 14... Bxf3 {[%clk 0:04:13.1]} 15. gxf3
{[%clk 0:04:13.9]} 15... O-O-O {[%clk 0:04:11.9]} 16. f4 {[%clk 0:04:03.7]}
16... Nbd5 {[%clk 0:04:09.2]} 17. O-O {[%clk 0:03:55.4]} 17... Nb4 {[%clk
0:04:07]} 18. Be2 {[%clk 0:03:38.4]} 18... h5 {[%clk 0:04:03.2]} 19. Rfc1 {[%clk
0:03:30.9]} 19... h4 {[%clk 0:04:00]} 20. Rc4 {[%clk 0:03:23.5]} 20... Nbd5
{[%clk 0:03:57.8]} 21. Bf3 {[%clk 0:03:19.7]} 21... hxg3 {[%clk 0:03:54.9]} 22.
fxg3 {[%clk 0:03:18.1]} 22... Rh6 {[%clk 0:03:46.9]} 23. e4 {[%clk 0:03:05.9]}
23... Nb6 {[%clk 0:03:42.6]} 24. Rc5 {[%clk 0:02:58.6]} 24... Rdh8 {[%clk
0:03:35.9]} 25. Kf2 {[%clk 0:02:53.4]} 25... Rh2+ {[%clk 0:03:22.5]} 26. Ke3
{[%clk 0:02:46.2]} 26... Rxb2 {[%clk 0:03:19.8]} 27. e5 {[%clk 0:02:41.3]} 27...
Nfd5+ {[%clk 0:03:17.2]} 28. Bxd5 {[%clk 0:02:27.3]} 28... Nxd5+ {[%clk
0:03:15.6]} 29. Kd3 {[%clk 0:02:24.3]} 29... Rhh2 {[%clk 0:03:04.6]} 30. Ra5
{[%clk 0:02:18.1]} 30... a6 {[%clk 0:02:56.4]} 31. Nc5 {[%clk 0:02:13.1]} 31...
Rhd2+ {[%clk 0:02:51.3]} 32. Kc4 {[%clk 0:02:06.2]} 32... b5+ {[%clk 0:02:43.9]}
33. Rxb5 {[%clk 0:01:57.3]} 33... axb5# {[%clk 0:02:43.2]} 0-1

[Event "Live Chess"]
[Site "Chess.com"]
[Date "2023.05.20"]
[Round "-"]
[White "JoshMcK"]
[Black "Bob2pen"]
[Result "0-1"]
[WhiteElo "1567"]
[BlackElo "1824"]
[TimeControl "300"]
[EndTime "13:00:16 PDT"]
[Termination "Bob2pen won by resignation"]

1. e4 {[%clk 0:04:57.7]} 1... e6 {[%clk 0:04:58.8]} 2. d4 {[%clk 0:04:56.1]}
2... d5 {[%clk 0:04:57.6]} 3. Nc3 {[%clk 0:04:52.7]} 3... Bb4 {[%clk 0:04:56.2]}
4. e5 {[%clk 0:04:50.8]} 4... Ne7 {[%clk 0:04:54.9]} 5. a3 {[%clk 0:04:49.6]}
5... Bxc3+ {[%clk 0:04:53.4]} 6. bxc3 {[%clk 0:04:49.5]} 6... c5 {[%clk
0:04:52.5]} 7. Nf3 {[%clk 0:04:47.8]} 7... Bd7 {[%clk 0:04:50.7]} 8. Bd3 {[%clk
0:04:46.7]} 8... c4 {[%clk 0:04:49.3]} 9. Be2 {[%clk 0:04:45]} 9... Ba4 {[%clk
0:04:48.3]} 10. O-O {[%clk 0:04:43.3]} 10... Nd7 {[%clk 0:04:43.4]} 11. h3
{[%clk 0:04:39.1]} 11... Qc7 {[%clk 0:04:41.6]} 12. Ng5 {[%clk 0:04:35.2]} 12...
h6 {[%clk 0:04:39.5]} 13. Nf3 {[%clk 0:04:33.6]} 13... O-O-O {[%clk 0:04:37.8]}
14. Bf4 {[%clk 0:04:23.9]} 14... Rdf8 {[%clk 0:04:34.9]} 15. Qb1 {[%clk
0:04:19.8]} 15... b5 {[%clk 0:04:31.7]} 16. Bd1 {[%clk 0:04:14.8]} 16... g5
{[%clk 0:04:29]} 17. Bd2 {[%clk 0:04:12.1]} 17... Ng6 {[%clk 0:04:25.3]} 18. Qb4
{[%clk 0:04:09.5]} 18... Rfg8 {[%clk 0:04:13.8]} 19. g3 {[%clk 0:04:01]} 19...
f5 {[%clk 0:03:59]} 20. exf6 {[%clk 0:03:56.2]} 20... Nxf6 {[%clk 0:03:57.5]}
21. Qc5 {[%clk 0:03:52.4]} 21... Qxc5 {[%clk 0:03:54.6]} 22. dxc5 {[%clk
0:03:52.3]} 22... Ne4 {[%clk 0:03:53]} 23. Be1 {[%clk 0:03:46.4]} 23... Kd7
{[%clk 0:03:47.1]} 24. Nd4 {[%clk 0:03:43.5]} 24... Ne5 {[%clk 0:03:38.6]} 25.
f3 {[%clk 0:03:37.3]} 25... Nxc5 {[%clk 0:03:36.7]} 26. Rb1 {[%clk 0:03:26.3]}
26... a6 {[%clk 0:03:28.9]} 27. Rf2 {[%clk 0:03:19.6]} 27... h5 {[%clk
0:03:27.2]} 28. g4 {[%clk 0:03:16.4]} 28... hxg4 {[%clk 0:03:25.3]} 29. hxg4
{[%clk 0:03:14.4]} 29... Rh3 {[%clk 0:03:20.5]} 30. Kg2 {[%clk 0:03:10.3]} 30...
Rgh8 {[%clk 0:03:18.8]} 31. Rf1 {[%clk 0:03:03.9]} 31... Rh2+ {[%clk 0:03:14.8]}
32. Kg1 {[%clk 0:03:01.4]} 32... Rh1+ {[%clk 0:03:04.9]} 33. Kf2 {[%clk
0:02:55]} 33... R8h2+ {[%clk 0:03:02.7]} 34. Kg3 {[%clk 0:02:53.5]} 34... Rxf1
{[%clk 0:03:01.1]} 35. Kxh2 {[%clk 0:02:52.6]} 35... Rxe1 {[%clk 0:02:59.5]} 0-1

[Event "Live Chess"]
[Site "Chess.com"]
[Date "2023.05.20"]
[Round "-"]
[White "Hacker_2009"]
[Black "GMHarry-youtube"]
[Result "1/2-1/2"]
[WhiteElo "1897"]
[BlackElo "2110"]
[TimeControl "300"]
[EndTime "13:00:26 PDT"]
[Termination "Game drawn by repetition"]

1. d4 {[%clk 0:04:58.8]} 1... Nf6 {[%clk 0:04:58.5]} 2. Nf3 {[%clk 0:04:57.6]}
2... g6 {[%clk 0:04:57.9]} 3. c4 {[%clk 0:04:55.9]} 3... Bg7 {[%clk 0:04:56.3]}
4. Nc3 {[%clk 0:04:55.4]} 4... d5 {[%clk 0:04:55.2]} 5. e3 {[%clk 0:04:53.1]}
5... O-O {[%clk 0:04:53.7]} 6. cxd5 {[%clk 0:04:52.2]} 6... Nxd5 {[%clk
0:04:52.8]} 7. Be2 {[%clk 0:04:47.6]} 7... Nxc3 {[%clk 0:04:51.2]} 8. bxc3
{[%clk 0:04:46.4]} 8... c5 {[%clk 0:04:50.7]} 9. O-O {[%clk 0:04:44.8]} 9... Nc6
{[%clk 0:04:49.7]} 10. Bb2 {[%clk 0:04:43.3]} 10... Bf5 {[%clk 0:04:44.7]} 11.
c4 {[%clk 0:04:35.4]} 11... cxd4 {[%clk 0:04:38.8]} 12. Nxd4 {[%clk 0:04:31]}
12... Qb6 {[%clk 0:04:33.8]} 13. Nxc6 {[%clk 0:04:19.4]} 13... Qxc6 {[%clk
0:04:16.8]} 14. Bxg7 {[%clk 0:04:17.3]} 14... Kxg7 {[%clk 0:04:16.7]} 15. Qd4+
{[%clk 0:04:16.3]} 15... Qf6 {[%clk 0:04:15.2]} 16. Qxf6+ {[%clk 0:04:14]} 16...
Kxf6 {[%clk 0:04:13.9]} 17. Bf3 {[%clk 0:04:13.9]} 17... Rac8 {[%clk 0:04:12.3]}
18. Bxb7 {[%clk 0:04:11.7]} 18... Rxc4 {[%clk 0:04:10.9]} 19. Bf3 {[%clk
0:04:11.3]} 19... Rfc8 {[%clk 0:04:09.3]} 20. Rfd1 {[%clk 0:04:09.9]} 20... e6
{[%clk 0:04:07.3]} 21. h3 {[%clk 0:04:08.6]} 21... Bc2 {[%clk 0:04:05.3]} 22.
Rd7 {[%clk 0:04:06.9]} 22... R8c7 {[%clk 0:04:03.6]} 23. Rxc7 {[%clk 0:04:04.2]}
23... Rxc7 {[%clk 0:04:03.5]} 24. Rc1 {[%clk 0:04:02.9]} 24... Rc4 {[%clk
0:04:01.5]} 25. Be2 {[%clk 0:03:56.1]} 25... Rc6 {[%clk 0:03:43.8]} 26. Bb5
{[%clk 0:03:48.2]} 26... Rb6 {[%clk 0:03:39.6]} 27. Rxc2 {[%clk 0:03:42.2]}
27... Rxb5 {[%clk 0:03:38.5]} 28. Rc7 {[%clk 0:03:41.7]} 28... Ra5 {[%clk
0:03:36.5]} 29. Rc2 {[%clk 0:03:39.6]} 29... Ke5 {[%clk 0:03:35.1]} 30. g3
{[%clk 0:03:38.8]} 30... Kd5 {[%clk 0:03:33.2]} 31. Rc7 {[%clk 0:03:38.3]} 31...
f5 {[%clk 0:03:27.6]} 32. Rxh7 {[%clk 0:03:36]} 32... Ke5 {[%clk 0:03:24.6]} 33.
Rg7 {[%clk 0:03:34.3]} 33... Kf6 {[%clk 0:03:23.3]} 34. Rg8 {[%clk 0:03:32.3]}
34... Rxa2 {[%clk 0:03:22.7]} 35. Ra8 {[%clk 0:03:31.9]} 35... a5 {[%clk
0:03:20.5]} 36. Kg2 {[%clk 0:03:31.4]} 36... Ke5 {[%clk 0:03:19.3]} 37. Kf3
{[%clk 0:03:30.6]} 37... Kd5 {[%clk 0:03:18.2]} 38. Rg8 {[%clk 0:03:28.4]} 38...
Rb2 {[%clk 0:03:10.8]} 39. Rxg6 {[%clk 0:03:26.3]} 39... Rb7 {[%clk 0:03:09.8]}
40. Rg8 {[%clk 0:03:24.6]} 40... Ra7 {[%clk 0:03:09.2]} 41. Rb8 {[%clk
0:03:20.3]} 41... a4 {[%clk 0:03:08.2]} 42. Rb1 {[%clk 0:03:19.8]} 42... a3
{[%clk 0:03:07.4]} 43. Ra1 {[%clk 0:03:19.4]} 43... Kc4 {[%clk 0:03:06.8]} 44.
g4 {[%clk 0:03:16.9]} 44... a2 {[%clk 0:03:03.4]} 45. gxf5 {[%clk 0:03:15.8]}
45... exf5 {[%clk 0:03:02.9]} 46. Kf4 {[%clk 0:03:15.1]} 46... Kb3 {[%clk
0:03:02.1]} 47. Kxf5 {[%clk 0:03:14.4]} 47... Rf7+ {[%clk 0:03:00.8]} 48. Kg4
{[%clk 0:03:08.4]} 48... Rxf2 {[%clk 0:02:59.7]} 49. e4 {[%clk 0:03:07.1]} 49...
Re2 {[%clk 0:02:55.7]} 50. Kf5 {[%clk 0:03:04]} 50... Rh2 {[%clk 0:02:51.4]} 51.
e5 {[%clk 0:02:59.5]} 51... Rxh3 {[%clk 0:02:50.4]} 52. e6 {[%clk 0:02:58.3]}
52... Rf3+ {[%clk 0:02:49.5]} 53. Ke5 {[%clk 0:02:56.3]} 53... Rf2 {[%clk
0:02:48.5]} 54. e7 {[%clk 0:02:53.7]} 54... Re2+ {[%clk 0:02:47.5]} 55. Kd6
{[%clk 0:02:52.9]} 55... Rd2+ {[%clk 0:02:45.9]} 56. Kc7 {[%clk 0:02:51.8]}
56... Rc2+ {[%clk 0:02:43.8]} 57. Kd8 {[%clk 0:02:51]} 57... Rd2+ {[%clk
0:02:42.2]} 58. Kc7 {[%clk 0:02:50.5]} 58... Re2 {[%clk 0:02:38.8]} 59. Kd8
{[%clk 0:02:49.3]} 59... Kb2 {[%clk 0:02:28.3]} 60. Rh1 {[%clk 0:02:44.1]} 60...
Rd2+ {[%clk 0:02:25.4]} 61. Kc7 {[%clk 0:02:42.9]} 61... Rc2+ {[%clk 0:02:24.6]}
62. Kd8 {[%clk 0:02:41.7]} 62... Rd2+ {[%clk 0:02:16.8]} 63. Kc7 {[%clk
0:02:40.7]} 63... Re2 {[%clk 0:02:13.2]} 64. Kd8 {[%clk 0:02:37.5]} 64... Rd2+
{[%clk 0:01:55.3]} 1/2-1/2

[Event "Live Chess"]
[Site "Chess.com"]
[Date "2023.05.20"]
[Round "-"]
[White "Conradical12"]
[Black "1600x"]
[Result "1-0"]
[WhiteElo "1579"]
[BlackElo "1722"]
[TimeControl "300"]
[EndTime "13:00:39 PDT"]
[Termination "Conradical12 won by resignation"]

1. e4 {[%clk 0:04:58.5]} 1... e5 {[%clk 0:04:55]} 2. Nf3 {[%clk 0:04:58.4]} 2...
Nc6 {[%clk 0:04:49.8]} 3. Bb5 {[%clk 0:04:56.8]} 3... Bc5 {[%clk 0:04:42.6]} 4.
c3 {[%clk 0:04:52.1]} 4... d6 {[%clk 0:04:40.5]} 5. O-O {[%clk 0:04:49.9]} 5...
a6 {[%clk 0:04:38.8]} 6. Ba4 {[%clk 0:04:48.5]} 6... b5 {[%clk 0:04:37.5]} 7.
Bb3 {[%clk 0:04:47.6]} 7... Qd7 {[%clk 0:04:36.1]} 8. d4 {[%clk 0:04:46.1]} 8...
Bb6 {[%clk 0:04:34.7]} 9. dxe5 {[%clk 0:04:38.5]} 9... Nxe5 {[%clk 0:04:27.2]}
10. Nxe5 {[%clk 0:04:34.1]} 10... dxe5 {[%clk 0:04:26]} 11. Qf3 {[%clk
0:04:32.9]} 11... Nf6 {[%clk 0:04:24.7]} 12. Bg5 {[%clk 0:04:31.7]} 12... Qd6
{[%clk 0:04:23.3]} 13. Rd1 {[%clk 0:04:28]} 13... Bg4 {[%clk 0:04:21.3]} 14.
Rxd6 {[%clk 0:04:20.3]} 14... Bxf3 {[%clk 0:04:19.5]} 15. Rxf6 {[%clk
0:04:18.2]} 15... gxf6 {[%clk 0:04:14.6]} 16. Bxf6 {[%clk 0:04:15.5]} 16... Rg8
{[%clk 0:04:04.3]} 17. Bd5 {[%clk 0:04:08.2]} 17... Rg3 {[%clk 0:04:03.1]} 18.
hxg3 {[%clk 0:04:05.3]} 18... Bxf2+ {[%clk 0:04:00.4]} 19. Kxf2 {[%clk
0:04:03.7]} 19... Rc8 {[%clk 0:03:58.6]} 20. Kxf3 {[%clk 0:03:54.2]} 20... c6
{[%clk 0:03:51.8]} 21. Bb3 {[%clk 0:03:49.9]} 21... a5 {[%clk 0:03:50.4]} 22.
Nd2 {[%clk 0:03:36.7]} 22... a4 {[%clk 0:03:48.9]} 23. Bc2 {[%clk 0:03:32.8]}
23... a3 {[%clk 0:03:47.7]} 24. b3 {[%clk 0:03:30.6]} 24... b4 {[%clk
0:03:46.4]} 25. Nc4 {[%clk 0:03:26.7]} 25... Kf8 {[%clk 0:03:44.9]} 26. Rh1
{[%clk 0:03:22.2]} 26... bxc3 {[%clk 0:03:43.4]} 27. Rxh7 {[%clk 0:03:21.7]}
27... Ke8 {[%clk 0:03:41.3]} 28. Nd6+ {[%clk 0:03:19.5]} 28... Kd7 {[%clk
0:03:40.3]} 29. Nxc8 {[%clk 0:03:18.5]} 29... Kxc8 {[%clk 0:03:40.2]} 30. Rxf7
{[%clk 0:03:17.3]} 30... c5 {[%clk 0:03:38.6]} 31. g4 {[%clk 0:03:15.3]} 31...
c4 {[%clk 0:03:37.8]} 32. Re7 {[%clk 0:03:13.5]} 32... cxb3 {[%clk 0:03:36.4]}
33. g5 {[%clk 0:03:13.4]} 33... bxc2 {[%clk 0:03:35.3]} 34. g6 {[%clk
0:03:13.3]} 34... c1=Q {[%clk 0:03:33.7]} 35. g7 {[%clk 0:03:08.9]} 35... Qf4+
{[%clk 0:03:31.1]} 36. Ke2 {[%clk 0:03:06.2]} 36... Qxe4+ {[%clk 0:03:28.8]} 37.
Kf1 {[%clk 0:03:04.7]} 37... Qb1+ {[%clk 0:03:27.1]} 38. Ke2 {[%clk 0:02:59.7]}
38... Qe4+ {[%clk 0:03:24.9]} 39. Kd1 {[%clk 0:02:58]} 39... Qb1+ {[%clk
0:03:23.6]} 40. Ke2 {[%clk 0:02:56.5]} 40... Qg6 {[%clk 0:03:19.8]} 41. Bxe5
{[%clk 0:02:41.5]} 41... c2 {[%clk 0:03:13.2]} 42. Kd2 {[%clk 0:02:35.6]} 42...
Kd8 {[%clk 0:03:10.1]} 43. Rc7 {[%clk 0:02:20]} 43... Qxg2+ {[%clk 0:03:00.9]}
44. Ke3 {[%clk 0:02:17.2]} 44... Qg5+ {[%clk 0:02:56.1]} 45. Kd4 {[%clk
0:02:14.7]} 45... c1=Q {[%clk 0:02:52.9]} 46. Rxc1 {[%clk 0:02:12.3]} 46... Qxc1
{[%clk 0:02:52.5]} 47. g8=Q+ {[%clk 0:02:10.7]} 47... Ke7 {[%clk 0:02:41.3]} 48.
Qg7+ {[%clk 0:02:04.9]} 48... Ke6 {[%clk 0:02:17]} 49. Qf6+ {[%clk 0:01:56.3]}
49... Kd7 {[%clk 0:02:13.5]} 50. Qf7+ {[%clk 0:01:51.8]} 50... Kc6 {[%clk
0:02:11.6]} 51. Qc7+ {[%clk 0:01:50]} 51... Kb5 {[%clk 0:02:09.7]} 52. Qxc1
{[%clk 0:01:49.9]} 52... Ka4 {[%clk 0:02:07.9]} 53. Qc4+ {[%clk 0:01:47.1]} 1-0

[Event "Live Chess"]
[Site "Chess.com"]
[Date "2023.05.20"]
[Round "-"]
[White "WelshTiger"]
[Black "Inglaterra"]
[Result "1-0"]
[WhiteElo "2414"]
[BlackElo "2075"]
[TimeControl "300"]
[EndTime "13:00:46 PDT"]
[Termination "WelshTiger won by resignation"]

1. e4 {[%clk 0:04:58.6]} 1... e5 {[%clk 0:04:56.8]} 2. Nf3 {[%clk 0:04:49]} 2...
Nf6 {[%clk 0:04:56.2]} 3. Nc3 {[%clk 0:04:47.8]} 3... Bb4 {[%clk 0:04:54.1]} 4.
Nxe5 {[%clk 0:04:44.2]} 4... O-O {[%clk 0:04:50.6]} 5. Be2 {[%clk 0:04:43.4]}
5... Re8 {[%clk 0:04:39.8]} 6. Nd3 {[%clk 0:04:42.5]} 6... Bxc3 {[%clk
0:04:38.5]} 7. dxc3 {[%clk 0:04:42.4]} 7... Nxe4 {[%clk 0:04:37.4]} 8. O-O
{[%clk 0:04:41.6]} 8... d5 {[%clk 0:04:33.6]} 9. Nf4 {[%clk 0:04:35.6]} 9... c6
{[%clk 0:04:31.6]} 10. c4 {[%clk 0:04:33.5]} 10... dxc4 {[%clk 0:04:16.9]} 11.
Bxc4 {[%clk 0:04:32.4]} 11... Qxd1 {[%clk 0:04:11.1]} 12. Rxd1 {[%clk
0:04:30.9]} 12... Bf5 {[%clk 0:03:56.6]} 13. Nd3 {[%clk 0:04:14.4]} 13... Nd7
{[%clk 0:03:50.5]} 14. Be3 {[%clk 0:04:13.1]} 14... Nb6 {[%clk 0:03:44.5]} 15.
Bb3 {[%clk 0:04:11.6]} 15... Nd5 {[%clk 0:03:30.7]} 16. Bxd5 {[%clk 0:04:09.6]}
16... cxd5 {[%clk 0:03:30.6]} 17. Bd4 {[%clk 0:04:00.7]} 17... Rac8 {[%clk
0:03:20.6]} 18. c3 {[%clk 0:03:59.1]} 18... b6 {[%clk 0:03:17.8]} 19. Nf4 {[%clk
0:03:54.1]} 19... Be6 {[%clk 0:03:14]} 20. Nxe6 {[%clk 0:03:52.6]} 20... fxe6
{[%clk 0:03:11.7]} 21. f3 {[%clk 0:03:52]} 21... Nd6 {[%clk 0:03:09]} 22. Re1
{[%clk 0:03:50.3]} 22... Kf7 {[%clk 0:02:58.3]} 23. Re2 {[%clk 0:03:46.3]} 23...
Rc6 {[%clk 0:02:39.3]} 24. a4 {[%clk 0:03:42.3]} 24... a6 {[%clk 0:02:36.9]} 25.
g4 {[%clk 0:03:36.2]} 25... Nc4 {[%clk 0:02:15.8]} 26. Kg2 {[%clk 0:03:32.6]}
26... e5 {[%clk 0:02:09.9]} 27. Bf2 {[%clk 0:03:31.2]} 27... e4 {[%clk 0:02:01]}
28. Rd1 {[%clk 0:03:26.9]} 28... exf3+ {[%clk 0:01:53.3]} 29. Kxf3 {[%clk
0:03:26.2]} 29... Rxe2 {[%clk 0:01:52]} 30. Kxe2 {[%clk 0:03:25.3]} 30... Nxb2
{[%clk 0:01:47.9]} 31. Rxd5 {[%clk 0:03:24.1]} 31... Nxa4 {[%clk 0:01:43.4]} 32.
Rd7+ {[%clk 0:03:18.3]} 32... Kf8 {[%clk 0:01:29.7]} 33. Bd4 {[%clk 0:03:10.1]}
33... Nxc3+ {[%clk 0:01:24.5]} 34. Kd3 {[%clk 0:03:09.2]} 34... Nb5 {[%clk
0:01:21.4]} 35. Bxg7+ {[%clk 0:03:02]} 35... Kg8 {[%clk 0:01:16.5]} 36. Rb7
{[%clk 0:02:55.4]} 36... Rc7 {[%clk 0:01:08.9]} 37. Rxc7 {[%clk 0:02:49]} 37...
Nxc7 {[%clk 0:01:08.8]} 38. Be5 {[%clk 0:02:47.8]} 38... Ne6 {[%clk 0:01:05.1]}
39. Ke4 {[%clk 0:02:44.5]} 39... Kf7 {[%clk 0:01:03.9]} 40. h4 {[%clk
0:02:42.8]} 40... h5 {[%clk 0:00:55.6]} 41. gxh5 {[%clk 0:02:40.6]} 41... Kg8
{[%clk 0:00:51.6]} 42. Kf5 {[%clk 0:02:38.8]} 42... Nc5 {[%clk 0:00:49.2]} 43.
Kg6 {[%clk 0:02:35.2]} 43... Ne6 {[%clk 0:00:45.9]} 44. Bd6 {[%clk 0:02:33.5]}
44... b5 {[%clk 0:00:43.5]} 45. h6 {[%clk 0:02:32.9]} 1-0

[Event "Live Chess"]
[Site "Chess.com"]
[Date "2023.05.20"]
[Round "-"]
[White "Stanbad1"]
[Black "boilerboy1"]
[Result "1-0"]
[WhiteElo "2412"]
[BlackElo "1050"]
[TimeControl "300"]
[EndTime "13:00:48 PDT"]
[Termination "Stanbad1 won by checkmate"]

1. d4 {[%clk 0:04:56.6]} 1... Nf6 {[%clk 0:04:57.7]} 2. Bg5 {[%clk 0:04:52.1]}
2... g6 {[%clk 0:04:55.8]} 3. Bxf6 {[%clk 0:04:50.2]} 3... exf6 {[%clk 0:04:54]}
4. c4 {[%clk 0:04:49.5]} 4... f5 {[%clk 0:04:52.3]} 5. Nc3 {[%clk 0:04:48.8]}
5... Bg7 {[%clk 0:04:50.2]} 6. g3 {[%clk 0:04:48.1]} 6... O-O {[%clk 0:04:46.7]}
7. Bg2 {[%clk 0:04:46.4]} 7... c5 {[%clk 0:04:43.8]} 8. e3 {[%clk 0:04:44.7]}
8... cxd4 {[%clk 0:04:41.1]} 9. exd4 {[%clk 0:04:43.5]} 9... Nc6 {[%clk
0:04:37.8]} 10. Nge2 {[%clk 0:04:41.9]} 10... Qa5 {[%clk 0:04:33.1]} 11. O-O
{[%clk 0:04:40.1]} 11... Qb4 {[%clk 0:04:28.3]} 12. Qd3 {[%clk 0:04:36.9]} 12...
Qxb2 {[%clk 0:04:19.9]} 13. Nd5 {[%clk 0:04:32.7]} 13... Rb8 {[%clk 0:03:52.6]}
14. Rfb1 {[%clk 0:04:29.2]} 14... Qa3 {[%clk 0:03:41.8]} 15. Qxa3 {[%clk
0:04:22.5]} 15... Nxd4 {[%clk 0:03:37.3]} 16. Nxd4 {[%clk 0:04:16.4]} 16... Bxd4
{[%clk 0:03:35]} 17. Ne7+ {[%clk 0:04:16]} 17... Kg7 {[%clk 0:03:27.2]} 18. Qd6
{[%clk 0:04:13.3]} 18... Bxa1 {[%clk 0:03:21.2]} 19. Qxb8 {[%clk 0:04:11.1]}
19... Bf6 {[%clk 0:03:11.5]} 20. Nxc8 {[%clk 0:04:09.1]} 20... d5 {[%clk
0:03:07.5]} 21. Bxd5 {[%clk 0:04:06.5]} 21... b6 {[%clk 0:03:03.2]} 22. Qb7
{[%clk 0:04:04.1]} 22... Bd4 {[%clk 0:02:33.9]} 23. Nd6 {[%clk 0:04:01.2]} 23...
Be5 {[%clk 0:02:13.8]} 24. Nxf7 {[%clk 0:03:58.5]} 24... Bf6 {[%clk 0:02:02]}
25. Ng5+ {[%clk 0:03:56]} 25... Kh6 {[%clk 0:01:57.9]} 26. Qxh7+ {[%clk
0:03:55.1]} 26... Kxg5 {[%clk 0:01:55.9]} 27. Qh4# {[%clk 0:03:54.4]} 1-0

[Event "Live Chess"]
[Site "Chess.com"]
[Date "2023.05.20"]
[Round "-"]
[White "ramses-IIG"]
[Black "ProfPoisson"]
[Result "0-1"]
[WhiteElo "822"]
[BlackElo "1063"]
[TimeControl "300"]
[EndTime "13:00:51 PDT"]
[Termination "ProfPoisson won by checkmate"]

1. e4 {[%clk 0:04:58.4]} 1... e5 {[%clk 0:04:57.4]} 2. Nf3 {[%clk 0:04:58.3]}
2... Nf6 {[%clk 0:04:55.4]} 3. Nxe5 {[%clk 0:04:56.4]} 3... Nxe4 {[%clk
0:04:54]} 4. Qe2 {[%clk 0:04:56.3]} 4... Qe7 {[%clk 0:04:52]} 5. Qxe4 {[%clk
0:04:51.3]} 5... d6 {[%clk 0:04:49.7]} 6. Qa4+ {[%clk 0:04:25.5]} 6... Bd7
{[%clk 0:04:40.6]} 7. Qxd7+ {[%clk 0:04:23.9]} 7... Nxd7 {[%clk 0:04:38.1]} 8.
d3 {[%clk 0:04:21.2]} 8... Qxe5+ {[%clk 0:04:35.7]} 9. Kd1 {[%clk 0:04:21.1]}
9... O-O-O {[%clk 0:04:30.6]} 10. f3 {[%clk 0:04:21]} 10... Re8 {[%clk
0:04:26.4]} 11. Nc3 {[%clk 0:04:20.9]} 11... Qe1# {[%clk 0:04:24.1]} 0-1

[Event "Live Chess"]
[Site "Chess.com"]
[Date "2023.05.20"]
[Round "-"]
[White "zdanevych"]
[Black "DmitryVasliev"]
[Result "0-1"]
[WhiteElo "1522"]
[BlackElo "1681"]
[TimeControl "300"]
[EndTime "13:00:55 PDT"]
[Termination "DmitryVasliev won by resignation"]

1. d4 {[%clk 0:04:59.1]} 1... d6 {[%clk 0:04:58.8]} 2. c4 {[%clk 0:04:58.4]}
2... g6 {[%clk 0:04:58.1]} 3. e4 {[%clk 0:04:57.3]} 3... Bg7 {[%clk 0:04:57.7]}
4. Nc3 {[%clk 0:04:56.8]} 4... h6 {[%clk 0:04:56.9]} 5. Nf3 {[%clk 0:04:56.4]}
5... c6 {[%clk 0:04:55.3]} 6. h3 {[%clk 0:04:55.9]} 6... Nd7 {[%clk 0:04:54.8]}
7. Bd3 {[%clk 0:04:55.4]} 7... a6 {[%clk 0:04:54.1]} 8. Be3 {[%clk 0:04:54.9]}
8... b5 {[%clk 0:04:53.1]} 9. b3 {[%clk 0:04:52.6]} 9... Bb7 {[%clk 0:04:50.4]}
10. Rc1 {[%clk 0:04:48.7]} 10... b4 {[%clk 0:04:44.9]} 11. Ne2 {[%clk
0:04:46.6]} 11... c5 {[%clk 0:04:41.9]} 12. dxc5 {[%clk 0:04:45]} 12... Nxc5
{[%clk 0:04:40.1]} 13. O-O {[%clk 0:04:36.7]} 13... Qc7 {[%clk 0:04:26.9]} 14.
Nf4 {[%clk 0:04:17.5]} 14... e6 {[%clk 0:04:17.9]} 15. Bb1 {[%clk 0:04:13.5]}
15... Nf6 {[%clk 0:04:04.1]} 16. Bd2 {[%clk 0:04:01.9]} 16... a5 {[%clk
0:03:57.8]} 17. Be3 {[%clk 0:03:58.7]} 17... Nfxe4 {[%clk 0:03:50]} 18. Bxc5
{[%clk 0:03:46]} 18... dxc5 {[%clk 0:03:43]} 19. Re1 {[%clk 0:03:41.2]} 19...
Qxf4 {[%clk 0:03:37.1]} 0-1

[Event "Live Chess"]
[Site "Chess.com"]
[Date "2023.05.20"]
[Round "-"]
[White "NAZRIZ1977"]
[Black "OleksiyJr1"]
[Result "1-0"]
[WhiteElo "2073"]
[BlackElo "962"]
[TimeControl "300"]
[EndTime "13:01:00 PDT"]
[Termination "NAZRIZ1977 won by resignation"]

1. d4 {[%clk 0:04:57.6]} 1... d5 {[%clk 0:04:56.7]} 2. Nc3 {[%clk 0:04:56.9]}
2... Nf6 {[%clk 0:04:55.9]} 3. Bf4 {[%clk 0:04:56.3]} 3... Nc6 {[%clk
0:04:55.1]} 4. e3 {[%clk 0:04:55.8]} 4... Bf5 {[%clk 0:04:54.3]} 5. Nb5 {[%clk
0:04:54.9]} 5... e6 {[%clk 0:04:41.9]} 6. Nxc7+ {[%clk 0:04:52.3]} 6... Ke7
{[%clk 0:04:39.5]} 7. Nxa8 {[%clk 0:04:52.2]} 7... Qxa8 {[%clk 0:04:38.4]} 8.
Nf3 {[%clk 0:04:51.3]} 8... Qc8 {[%clk 0:04:38.3]} 9. Bd3 {[%clk 0:04:49.4]}
9... Qd7 {[%clk 0:04:38.2]} 10. Bxf5 {[%clk 0:04:48.1]} 10... Nb4 {[%clk
0:04:38.1]} 11. Bd3 {[%clk 0:04:45.5]} 11... Qa4 {[%clk 0:04:38]} 12. b3 {[%clk
0:04:43.6]} 1-0